fUST/lending_fUST_20250904
["ID","MTS","AMOUNT","RATE_DAILY","PERIOD"]
[383473230,1756951843751,-482.21006931,0.00013972,2]
[383473231,1756951843761,-480.0,0.00013972,2]
[383473232,1756951843771,-480.0,0.00013972,2]
[383473233,1756951843780,-480.0,0.00013972,2]
[383473234,1756951843789,-484.1540837,0.00013972,2]
[383473235,1756951843799,-1062.97,0.00013972,2]
[383473236,1756951843808,-480.0,0.00013972,2]
[383473237,1756951843818,-647.87,0.00013972,2]
[383473238,1756951843827,-490.95637056,0.00013972,2]
[383473239,1756951843837,-497.01822666,0.00013972,2]
[383473240,1756951843846,-480.0,0.00013972,2]
[383473241,1756951843856,-480.40041886,0.00013972,2]
[383473242,1756951843865,-794.23,0.00013972,2]
[383473243,1756951843874,-480.0,0.00013972,2]
[383473244,1756951843884,-480.0,0.00013972,2]
[383473245,1756951843893,-364.88127723,0.00013972,2]
[383473246,1756951843902,-480.0,0.00013972,2]
[383473247,1756951843912,-311.26855454,0.00013972,2]
[383473248,1756951843923,-480.0,0.00013972,2]
[383473249,1756951843933,-584.75,0.00013972,2]
[383473250,1756951843943,-523.65778618,0.00013972,2]
[383473251,1756951843957,-2376.43,0.00013972,2]
[383473252,1756951843966,-480.0,0.00013972,2]
[383473253,1756951843979,-480.0,0.00013972,2]
[383473254,1756951843991,-480.0,0.00013972,2]
[383473255,1756951844000,-1790.64,0.00013972,2]
[383473256,1756951844010,-176.42673485,0.00013972,2]
[383473257,1756951844020,-480.0,0.00013972,2]
[383473258,1756951844029,-480.0,0.00013972,2]
[383473259,1756951844039,-896.42,0.00013972,2]
[383473260,1756951844048,-531.67,0.00013972,2]
[383473261,1756951844057,-480.0,0.00013972,2]
[383473262,1756951844067,-480.0,0.00013972,2]
[383473263,1756951844076,-196.97332256,0.00013972,2]
[383473264,1756951844085,-480.0,0.00013972,2]
[383473265,1756951844094,-500.0,0.00013972,2]
[383473266,1756951844104,-164.29498884,0.00013973,2]
[383473267,1756951844115,-500.78834048,0.00013973,2]
[383473268,1756951844135,-501.94307181,0.00013973,2]
[383473269,1756951844158,-500.0,0.00013973,2]
[383473270,1756951844168,-246.26132631,0.00013973,2]
[383473271,1756951844178,-624.17812147,0.00013973,2]
[383473272,1756951844187,-500.0,0.00013973,2]
[383473273,1756951844197,-500.8973808,0.00013973,2]
[383473274,1756951844207,-500.0,0.00013973,2]
[383473275,1756951844217,-500.0,0.00013973,2]
[383473276,1756951844226,-500.95843424,0.00013973,2]
[383473277,1756951844236,-292.31718522,0.00013973,2]
[383473278,1756951844245,-501.1281327,0.00013973,2]
[383473279,1756951844255,-500.87498815,0.00013973,2]
[383473280,1756951844267,-100000.0,0.0001399,2]
[383473281,1756951844278,-153.298722,0.0001399,2]
[383473282,1756951844288,-151.0,0.0001399,2]
[383473283,1756951844297,-151.834064,0.0001399,2]
[383473284,1756951844306,-151.0,0.0001399,2]
[383473285,1756951844316,-151.0,0.0001399,2]
[383473286,1756951844326,-164.763631,0.0001399,2]
[383473287,1756951844336,-151.0,0.0001399,2]
[383473288,1756951844346,-151.0,0.0001399,2]
[383473289,1756951844356,-151.0,0.0001399,2]
[383473290,1756951844366,-151.0,0.0001399,2]
[383473291,1756951844376,-221.989364,0.0001399,2]
[383473292,1756951844385,-151.0,0.0001399,2]
[383473293,1756951844394,-153.886163,0.0001399,2]
[383473294,1756951844404,-151.909546,0.0001399,2]
[383473295,1756951844414,-151.0,0.0001399,2]
[383473296,1756951844424,-151.0,0.0001399,2]
[383473297,1756951844434,-151.0,0.0001399,2]
[383473298,1756951844443,-151.559598,0.0001399,2]
[383473299,1756951844453,-151.0,0.0001399,2]
[383473300,1756951844463,-151.0,0.0001399,2]
[383473301,1756951844472,-287.684994,0.0001399,2]
[383473302,1756951844482,-151.0,0.0001399,2]
[383473303,1756951844493,-151.229089,0.0001399,2]
[383473304,1756951844505,-151.0,0.0001399,2]
[383473305,1756951844515,-521.434516,0.0001399,2]
[383473306,1756951844525,-521.434516,0.0001399,2]
[383473307,1756951844535,-151.0,0.0001399,2]
[383473308,1756951844544,-521.434516,0.0001399,2]
[383473309,1756951844554,-151.0,0.0001399,2]
[383473310,1756951844564,-521.434516,0.0001399,2]
[383473311,1756951844574,-629.58748224,0.00014146,2]
[383473312,1756951844584,-501.52711983,0.00014221,2]
[383473313,1756951844593,-221.99807029,0.00014221,2]
[383473314,1756951844603,-1000.0,0.00014221,2]
[383473315,1756951844612,-1009.01026563,0.00014221,2]
[383473316,1756951844622,-1000.0,0.00014221,2]
[383473317,1756951844632,-501.47789542,0.00014221,2]
[383473318,1756951844643,-1003.40915118,0.00014221,2]
[383473319,1756951844652,-151.0,0.00014246,2]
[383473320,1756951844662,-151.0,0.00014246,2]
[383473321,1756951844672,-500.0,0.00014246,2]
[383473322,1756951844683,-152.15090474,0.00014246,2]
[383473323,1756951844693,-151.0,0.00014246,2]
[383473324,1756951844703,-151.0,0.00014246,2]
[383473325,1756951844712,-480.0,0.00014246,2]
[383473326,1756951844724,-480.0,0.00014246,2]
[383473327,1756951844733,-480.0,0.00014246,2]
[383473328,1756951844743,-480.0,0.00014246,2]
[383473329,1756951844753,-480.0,0.00014246,2]
[383473330,1756951844763,-480.0,0.00014246,2]
[383473331,1756951844774,-463.32347414,0.00014246,2]
[383473332,1756951844784,-480.0,0.00014246,2]
[383473333,1756951844794,-480.0,0.00014246,2]
[383473334,1756951844804,-480.0,0.00014246,2]
[383473335,1756951844813,-480.0,0.00014246,2]
[383473336,1756951844823,-480.0,0.00014246,2]
[383473337,1756951844833,-151.0,0.00014246,2]
[383473338,1756951844843,-151.0,0.00014246,2]
[383473339,1756951844853,-151.0,0.00014246,2]
[383473340,1756951844863,-480.0,0.00014246,2]
[383473341,1756951844872,-923.88,0.00014246,2]
[383473342,1756951844882,-1327.33,0.00014246,2]
[383473343,1756951844892,-1316.6,0.00014246,2]
[383473344,1756951844901,-529.34,0.00014246,2]
[383473345,1756951844911,-480.0,0.00014246,2]
[383473346,1756951844921,-474.87019286,0.00014246,2]
[383473347,1756951844932,-888.58,0.00014246,2]
[383473348,1756951844942,-480.0,0.00014246,2]
[383473349,1756951844952,-480.0,0.00014246,2]
[383473350,1756951844965,-480.0,0.00014246,2]
[383473351,1756951844975,-480.0,0.00014246,2]
[383473352,1756951844985,-480.0,0.00014246,2]
[383473353,1756951844995,-1062.97,0.00014246,2]
[383473354,1756951845005,-480.0,0.00014246,2]
[383473355,1756951845015,-647.87,0.00014246,2]
[383473356,1756951845026,-480.0,0.00014246,2]
[383473357,1756951845036,-794.23,0.00014246,2]
[383473358,1756951845046,-480.0,0.00014246,2]
[383473359,1756951845055,-480.0,0.00014246,2]
[383473360,1756951845065,-480.0,0.00014246,2]
[383473361,1756951845074,-480.0,0.00014246,2]
[383473362,1756951845084,-584.75,0.00014246,2]
[383473363,1756951845093,-2376.43,0.00014246,2]
[383473364,1756951845103,-480.0,0.00014246,2]
[383473365,1756951845112,-480.0,0.00014246,2]
[383473366,1756951845122,-480.0,0.00014246,2]
[383473367,1756951845131,-1790.64,0.00014246,2]
[383473368,1756951845140,-480.0,0.00014246,2]
[383473369,1756951845150,-896.42,0.00014246,2]
[383473370,1756951845159,-531.67,0.00014246,2]
[383473371,1756951845169,-480.0,0.00014246,2]
[383473372,1756951845180,-485.43159407,0.00014246,2]
[383473373,1756951845189,-500.0,0.00014246,2]
[383473374,1756951845199,-160.0,0.00014271,2]
[383473375,1756951845209,-846.4110323,0.00014272,2]
[383473376,1756951845218,-160.0,0.00014272,2]
[383473377,1756951845228,-217.5338025,0.00014272,2]
[383473378,1756951845237,-530.40833076,0.00014272,2]
[383473379,1756951845247,-232.93421481,0.00014272,2]
[383473380,1756951845257,-160.0,0.00014272,2]
[383473381,1756951845270,-160.0,0.00014272,2]
[383473382,1756951845279,-417.15472785,0.00014272,2]
[383473383,1756951845289,-260.41666667,0.00014272,2]
[383473384,1756951845300,-500.62729822,0.00014291,2]
[383473385,1756951845310,-500.87818574,0.00014308,2]
[383473386,1756951845320,-501.38012518,0.00014373,2]
[383473387,1756951845330,-173.0,0.00014453,2]
[383473388,1756951845339,-501.97225585,0.00014463,2]
[383473389,1756951845349,-501.89351002,0.00014463,2]
[383473390,1756951845358,-500.9306271,0.00014463,2]
[383473391,1756951845368,-420.0,0.00014469,2]
[383473392,1756951845377,-151.0,0.00014472,2]
[383473393,1756951845387,-151.0,0.00014472,2]
[383473394,1756951845397,-151.0,0.00014472,2]
[383473395,1756951845406,-156.783332,0.00014472,2]
[383473396,1756951845416,-151.0,0.00014472,2]
[383473397,1756951845426,-151.0,0.00014472,2]
[383473398,1756951845436,-153.112264,0.00014472,2]
[383473399,1756951845446,-500.50093476,0.00014495,2]
[383473400,1756951845456,-500.0,0.00014498,2]
[383473401,1756951845466,-152.08910662,0.0001452,2]
[383473402,1756951845476,-152.61530072,0.0001452,2]
[383473403,1756951845492,-500.0,0.0001452,2]
[383473404,1756951845502,-151.0,0.0001452,2]
[383473405,1756951845512,-151.0,0.0001452,2]
[383473406,1756951845522,-471.61144607,0.0001452,2]
[383473407,1756951845531,-480.0,0.0001452,2]
[383473408,1756951845541,-480.0,0.0001452,2]
[383473409,1756951845551,-209.47605531,0.0001452,2]
[383473410,1756951845560,-411.53263135,0.0001452,2]
[383473411,1756951845570,-480.0,0.0001452,2]
[383473412,1756951845580,-480.0,0.0001452,2]
[383473413,1756951845590,-480.0,0.0001452,2]
[383473414,1756951845600,-480.0,0.0001452,2]
[383473415,1756951845609,-480.0,0.0001452,2]
[383473416,1756951845619,-480.0,0.0001452,2]
[383473417,1756951845629,-480.0,0.0001452,2]
[383473418,1756951845639,-480.0,0.0001452,2]
[383473419,1756951845649,-923.88,0.0001452,2]
[383473420,1756951845659,-1327.33,0.0001452,2]
[383473421,1756951845668,-1316.6,0.0001452,2]
[383473422,1756951845679,-529.34,0.0001452,2]
[383473423,1756951845688,-480.0,0.0001452,2]
[383473424,1756951845698,-888.58,0.0001452,2]
[383473425,1756951845708,-480.0,0.0001452,2]
[383473426,1756951845718,-501.01914912,0.0001452,2]
[383473427,1756951845728,-480.0,0.0001452,2]
[383473428,1756951845738,-480.0,0.0001452,2]
[383473429,1756951845748,-480.0,0.0001452,2]
[383473430,1756951845758,-1062.97,0.0001452,2]
[383473431,1756951845767,-480.0,0.0001452,2]
[383473432,1756951845778,-647.87,0.0001452,2]
[383473434,1756951845788,-480.0,0.0001452,2]
[383473435,1756951845798,-794.23,0.0001452,2]
[383473436,1756951845807,-480.0,0.0001452,2]
[383473437,1756951845818,-480.0,0.0001452,2]
[383473438,1756951845828,-480.0,0.0001452,2]
[383473439,1756951845838,-480.0,0.0001452,2]
[383473440,1756951845848,-584.75,0.0001452,2]
[383473441,1756951845857,-2376.43,0.0001452,2]
[383473442,1756951845867,-480.0,0.0001452,2]
[383473443,1756951845877,-480.0,0.0001452,2]
[383473444,1756951845887,-480.0,0.0001452,2]
[383473445,1756951845898,-1790.64,0.0001452,2]
[383473446,1756951845907,-480.0,0.0001452,2]
[383473447,1756951845917,-896.42,0.0001452,2]
[383473448,1756951845927,-531.67,0.0001452,2]
[383473449,1756951845936,-480.0,0.0001452,2]
[383473450,1756951845945,-519.63847923,0.00014521,2]
[383473451,1756951845956,-1000.0,0.00014521,2]
[383473452,1756951845967,-1000.0,0.00014521,2]
[383473453,1756951845977,-1000.0,0.00014521,2]
[383473454,1756951845987,-501.06886129,0.00014593,2]
[383473455,1756951845998,-424.85228451,0.00014691,2]
[383473456,1756951846008,-504.40997062,0.00014768,2]
[383473457,1756951846018,-1237.46934477,0.00014768,2]
[383473459,1756951846028,-500.0,0.00014794,2]
[383473462,1756951846037,-247.30715855,0.00014794,2]
[383473464,1756951846048,-151.0,0.00014794,2]
[383473465,1756951846057,-480.0,0.00014794,2]
[383473467,1756951846067,-480.0,0.00014794,2]
[383473468,1756951846076,-269.09309013,0.00014794,2]
[383473469,1756951846086,-500.0,0.00014794,2]
[383473470,1756951846095,-151.06940744,0.00014794,2]
[383473471,1756951846105,-151.0,0.00014794,2]
[383473472,1756951846114,-151.0,0.00014794,2]
[383473473,1756951846124,-151.0,0.00014794,2]
[383473474,1756951846134,-151.0,0.00014794,2]
[383473475,1756951846144,-500.0,0.00014794,2]
[383473476,1756951846153,-151.0,0.00014794,2]
[383473477,1756951846162,-500.0,0.00014794,2]
[383473478,1756951846172,-500.0,0.00014794,2]
[383473479,1756951846182,-500.0,0.00014794,2]
[383473480,1756951846192,-151.22071053,0.00014794,2]
[383473481,1756951846202,-480.0,0.00014794,2]
[383473482,1756951846212,-480.0,0.00014794,2]
[383473483,1756951846222,-480.0,0.00014794,2]
[383473484,1756951846233,-480.0,0.00014794,2]
[383473485,1756951846242,-480.0,0.00014794,2]
[383473486,1756951846252,-480.0,0.00014794,2]
[383473487,1756951846263,-480.0,0.00014794,2]
[383473488,1756951846273,-480.0,0.00014794,2]
[383473489,1756951846283,-923.88,0.00014794,2]
[383473490,1756951846295,-1327.33,0.00014794,2]
[383473491,1756951846304,-1316.6,0.00014794,2]
[383473492,1756951846314,-529.34,0.00014794,2]
[383473493,1756951846325,-444.2337504,0.00014794,2]
[383473494,1756951846335,-888.58,0.00014794,2]
[383473495,1756951846344,-347.33337912,0.00014794,2]
[383473496,1756951846354,-480.0,0.00014794,2]
[383473497,1756951846364,-480.0,0.00014794,2]
[383473498,1756951846374,-480.0,0.00014794,2]
[383473499,1756951846384,-1062.97,0.00014794,2]
[383473500,1756951846495,-480.0,0.00014794,2]
[383473501,1756951846504,-647.87,0.00014794,2]
[383473502,1756951846514,-480.0,0.00014794,2]
[383473503,1756951846524,-794.23,0.00014794,2]
[383473504,1756951846533,-480.0,0.00014794,2]
[383473505,1756951846543,-480.0,0.00014794,2]
[383473506,1756951846552,-480.0,0.00014794,2]
[383473507,1756951846562,-354.56521704,0.00014794,2]
[383473508,1756951846571,-584.75,0.00014794,2]
[383473509,1756951846581,-2376.43,0.00014794,2]
[383473510,1756951846590,-480.0,0.00014794,2]
[383473511,1756951846601,-480.0,0.00014794,2]
[383473512,1756951846610,-480.0,0.00014794,2]
[383473513,1756951846621,-1790.64,0.00014794,2]
[383473514,1756951846630,-480.0,0.00014794,2]
[383473515,1756951846640,-896.42,0.00014794,2]
[383473516,1756951846649,-531.67,0.00014794,2]
[383473517,1756951846659,-480.0,0.00014794,2]
[383473518,1756951846668,-217.28705225,0.00015046,2]
[383473519,1756951846678,-500.0,0.00015068,2]
[383473520,1756951846687,-152.00761111,0.00015068,2]
[383473521,1756951846697,-500.0,0.00015068,2]
[383473522,1756951846706,-153.15077533,0.00015068,2]
[383473523,1756951846716,-151.30061107,0.00015068,2]
[383473524,1756951846725,-151.0,0.00015068,2]
[383473525,1756951846735,-151.0,0.00015068,2]
[383473526,1756951846744,-500.0,0.00015068,2]
[383473527,1756951846753,-500.0,0.00015068,2]
[383473528,1756951846763,-151.0,0.00015068,2]
[383473529,1756951846772,-500.0,0.00015068,2]
[383473530,1756951846781,-500.0,0.00015068,2]
[383473531,1756951846791,-480.0,0.00015068,2]
[383473532,1756951846800,-480.0,0.00015068,2]
[383473533,1756951846809,-194.53632978,0.00015068,2]
[383473534,1756951846819,-480.0,0.00015068,2]
[383473535,1756951846828,-480.0,0.00015068,2]
[383473536,1756951846837,-480.0,0.00015068,2]
[383473537,1756951846846,-480.0,0.00015068,2]
[383473538,1756951846855,-480.0,0.00015068,2]
[383473539,1756951846865,-262.29914732,0.00015068,2]
[383473540,1756951846874,-360.97995712,0.00015068,2]
[383473541,1756951846883,-923.88,0.00015068,2]
[383473542,1756951846893,-1327.33,0.00015068,2]
[383473543,1756951846902,-1316.6,0.00015068,2]
[383473544,1756951846911,-529.34,0.00015068,2]
[383473545,1756951846921,-888.58,0.00015068,2]
[383473546,1756951846930,-480.0,0.00015068,2]
[383473547,1756951846939,-480.0,0.00015068,2]
[383473548,1756951846948,-480.0,0.00015068,2]
[383473549,1756951846960,-1062.97,0.00015068,2]
[383473550,1756951846970,-480.0,0.00015068,2]
[383473551,1756951846979,-647.87,0.00015068,2]
[383473552,1756951846989,-480.0,0.00015068,2]
[383473553,1756951846999,-794.23,0.00015068,2]
[383473554,1756951847009,-480.0,0.00015068,2]
[383473555,1756951847020,-480.0,0.00015068,2]
[383473556,1756951847031,-480.0,0.00015068,2]
[383473557,1756951847044,-584.75,0.00015068,2]
[383473558,1756951847054,-2376.43,0.00015068,2]
[383473559,1756951847065,-480.0,0.00015068,2]
[383473560,1756951847075,-480.0,0.00015068,2]
[383473561,1756951847085,-480.0,0.00015068,2]
[383473562,1756951847094,-1790.64,0.00015068,2]
[383473563,1756951847104,-480.0,0.00015068,2]
[383473564,1756951847113,-896.42,0.00015068,2]
[383473565,1756951847124,-531.67,0.00015068,2]
[383473566,1756951847134,-566.72359948,0.00015068,2]
[383473567,1756951847143,-508.49413806,0.00015068,2]
[383473568,1756951847153,-1500.0,0.00015068,2]
[383473569,1756951847163,-1003.72540224,0.00015068,2]
[383473570,1756951847174,-494.98569013,0.00015086,2]
[383473571,1756951847185,-160.0,0.00015194,2]
[383473572,1756951847196,-151.0,0.000152,2]
[383473573,1756951847205,-409.0,0.00015276,2]
[383473574,1756951847215,-425.265,0.00015276,2]
[383473575,1756951847227,-500.0,0.00015342,2]
[383473576,1756951847239,-151.69267867,0.00015342,2]
[383473577,1756951847248,-151.0,0.00015342,2]
[383473578,1756951847258,-151.56321149,0.00015342,2]
[383473579,1756951847269,-302.89826423,0.00015342,2]
[383473580,1756951847279,-304.17671394,0.00015342,2]
[383473581,1756951847288,-151.37749275,0.00015342,2]
[383473582,1756951847297,-151.41224727,0.00015342,2]
[383473583,1756951847306,-350.8951186,0.00015342,2]
[383473584,1756951847316,-480.0,0.00015342,2]
[383473585,1756951847325,-480.0,0.00015342,2]
[383473586,1756951847335,-480.0,0.00015342,2]
[383473587,1756951847345,-152.064801,0.00015342,2]
[383473588,1756951847355,-314.4062988,0.00015342,2]
[383473589,1756951847364,-151.142064,0.00015342,2]
[383473590,1756951847373,-151.0,0.00015342,2]
[383473591,1756951847383,-151.532079,0.00015342,2]
[383473592,1756951847392,-152.119043,0.00015342,2]
[383473593,1756951847402,-151.0,0.00015342,2]
[383473594,1756951847411,-151.0,0.00015342,2]
[383473595,1756951847421,-151.0,0.00015342,2]
[383473596,1756951847431,-151.0,0.00015342,2]
[383473597,1756951847440,-151.0,0.00015342,2]
[383473598,1756951847450,-151.0,0.00015342,2]
[383473599,1756951847459,-151.0,0.00015342,2]
[383473600,1756951847469,-480.0,0.00015342,2]
[383473601,1756951847478,-480.0,0.00015342,2]
[383473602,1756951847487,-480.0,0.00015342,2]
[383473603,1756951847498,-923.88,0.00015342,2]
[383473604,1756951847509,-1327.33,0.00015342,2]
[383473605,1756951847520,-1316.6,0.00015342,2]
[383473606,1756951847531,-529.34,0.00015342,2]
[383473607,1756951847541,-888.58,0.00015342,2]
[383473608,1756951847550,-480.0,0.00015342,2]
[383473609,1756951847560,-237.11779469,0.00015342,2]
[383473610,1756951847569,-295.30049674,0.00015342,2]
[383473611,1756951847579,-151.0,0.00015342,2]
[383473612,1756951847589,-151.0,0.00015342,2]
[383473613,1756951847598,-1062.97,0.00015342,2]
[383473614,1756951847610,-480.0,0.00015342,2]
[383473615,1756951847619,-647.87,0.00015342,2]
[383473616,1756951847629,-480.0,0.00015342,2]
[383473617,1756951847639,-794.23,0.00015342,2]
[383473618,1756951847648,-210.85503184,0.00015342,2]
[383473619,1756951847658,-480.0,0.00015342,2]
[383473620,1756951847667,-480.0,0.00015342,2]
[383473621,1756951847676,-152.699734,0.00015342,2]
[383473622,1756951847688,-584.75,0.00015342,2]
[383473623,1756951847699,-2376.43,0.00015342,2]
[383473624,1756951847708,-480.0,0.00015342,2]
[383473625,1756951847718,-480.0,0.00015342,2]
[383473626,1756951847727,-480.0,0.00015342,2]
[383473627,1756951847738,-1790.64,0.00015342,2]
[383473628,1756951847747,-186.92635811,0.00015342,2]
[383473629,1756951847757,-480.0,0.00015342,2]
[383473630,1756951847766,-151.0,0.00015342,2]
[383473631,1756951847776,-151.0,0.00015342,2]
[383473632,1756951847786,-896.42,0.00015342,2]
[383473633,1756951847796,-531.67,0.00015342,2]
[383473634,1756951847805,-152.413955,0.00015342,2]
[383473635,1756951847815,-521.434516,0.00015342,2]
[383473636,1756951847824,-521.434516,0.00015342,2]
[383473637,1756951847834,-151.0,0.00015342,2]
[383473638,1756951847843,-521.434516,0.00015342,2]
[383473639,1756951847852,-521.434516,0.00015342,2]
[383473640,1756951847863,-151.0,0.00015404,2]
[383473641,1756951847872,-151.0,0.00015404,2]
[383473642,1756951847881,-151.0,0.00015404,2]
[383473643,1756951847890,-151.0,0.00015404,2]
[383473644,1756951847899,-371.013586,0.00015404,2]
[383473645,1756951847908,-184.646413,0.00015404,2]
[383473646,1756951847918,-250.0,0.00015416,2]
[383473647,1756951847927,-208.766,0.00015416,2]
[383473648,1756951847936,-224.196,0.00015416,2]
[383473649,1756951847946,-250.0,0.00015416,2]
[383473650,1756951847956,-249.1,0.00015416,2]
[383473651,1756951847966,-250.498,0.00015416,2]
[383473652,1756951847976,-262.104,0.00015416,2]
[383473653,1756951847985,-221.273,0.00015416,2]
[383473654,1756951847995,-1011.886,0.00015416,2]
[383473655,1756951848004,-2159.74,0.00015416,2]
[383473656,1756951848014,-633.0,0.00015416,2]
[383473657,1756951848023,-152.903263,0.00015515,2]
[383473658,1756951848033,-250.0,0.00015566,2]
[383473659,1756951848042,-187.78006525,0.00015566,2]
[383473660,1756951848053,-250.0,0.00015566,2]
[383473661,1756951848062,-271.44145063,0.00015566,2]
[383473662,1756951848071,-250.0,0.00015566,2]
[383473663,1756951848081,-250.0,0.00015566,2]
[383473664,1756951848091,-151.0,0.00015566,2]
[383473665,1756951848100,-250.0,0.00015566,2]
[383473666,1756951848110,-151.0,0.00015566,2]
[383473667,1756951848120,-250.0,0.00015566,2]
[383473668,1756951848129,-152.41700061,0.00015566,2]
[383473669,1756951848139,-250.0,0.00015566,2]
[383473670,1756951848148,-250.0,0.00015566,2]
[383473671,1756951848157,-2347.87260389,0.00015566,2]
[383473672,1756951848167,-253.51423791,0.00015566,2]
[383473673,1756951848177,-500.0,0.00015566,2]
[383473674,1756951848187,-500.0,0.00015566,2]
[383473675,1756951848197,-500.0,0.00015566,2]
[383473676,1756951848207,-500.0,0.00015566,2]
[383473677,1756951848216,-500.0,0.00015566,2]
[383473678,1756951848226,-500.0,0.00015566,2]
[383473679,1756951848236,-500.0,0.00015566,2]
[383473680,1756951848246,-500.0,0.00015566,2]
[383473681,1756951848255,-500.0,0.00015566,2]
[383473682,1756951848267,-327.81457322,0.00015566,2]
[383473683,1756951848277,-151.0,0.00015566,2]
[383473684,1756951848287,-151.0,0.00015566,2]
[383473685,1756951848297,-153.570921,0.00015566,2]
[383473686,1756951848306,-500.0,0.00015616,2]
[383473687,1756951848316,-151.0,0.00015616,2]
[383473688,1756951848325,-284.38677616,0.00015616,2]
[383473689,1756951848335,-480.0,0.00015616,2]
[383473690,1756951848344,-152.082744,0.00015616,2]
[383473691,1756951848354,-480.0,0.00015616,2]
[383473692,1756951848364,-151.0,0.00015616,2]
[383473693,1756951848373,-151.0,0.00015616,2]
[383473694,1756951848383,-535.55637492,0.00015616,2]
[383473695,1756951848392,-480.0,0.00015616,2]
[383473696,1756951848402,-480.0,0.00015616,2]
[383473697,1756951848411,-923.88,0.00015616,2]
[383473698,1756951848421,-1327.33,0.00015616,2]
[383473699,1756951848430,-1316.6,0.00015616,2]
[383473700,1756951848440,-529.34,0.00015616,2]
[383473701,1756951848449,-888.58,0.00015616,2]
[383473702,1756951848459,-480.0,0.00015616,2]
[383473703,1756951848468,-1062.97,0.00015616,2]
[383473704,1756951848478,-480.0,0.00015616,2]
[383473705,1756951848487,-647.87,0.00015616,2]
[383473706,1756951848496,-480.0,0.00015616,2]
[383473707,1756951848507,-794.23,0.00015616,2]
[383473708,1756951848517,-480.0,0.00015616,2]
[383473709,1756951848526,-480.0,0.00015616,2]
[383473710,1756951848535,-584.75,0.00015616,2]
[383473711,1756951848545,-2376.43,0.00015616,2]
[383473712,1756951848555,-480.0,0.00015616,2]
[383473713,1756951848565,-480.0,0.00015616,2]
[383473714,1756951848575,-480.0,0.00015616,2]
[383473715,1756951848584,-1790.64,0.00015616,2]
[383473716,1756951848594,-480.0,0.00015616,2]
[383473717,1756951848604,-896.42,0.00015616,2]
[383473718,1756951848614,-531.67,0.00015616,2]
[383473719,1756951848624,-2000.0,0.00015616,2]
[383473720,1756951848633,-2434.74389024,0.00015621,2]
[383473721,1756951848643,-151.0,0.00015621,2]
[383473722,1756951848653,-151.0,0.00015621,2]
[383473723,1756951848662,-151.0,0.00015621,2]
[383473724,1756951848673,-151.0,0.00015621,2]
[383473725,1756951848683,-152.878388,0.00015621,2]
[383473726,1756951848693,-2524.82941417,0.00015676,2]
[383473727,1756951848703,-2618.2481025,0.00015731,2]
[383473728,1756951848713,-260.0,0.00015742,2]
[383473729,1756951848722,-2715.12328229,0.00015786,2]
[383473730,1756951848733,-302.66341011,0.00015797,2]
[383473731,1756951848742,-500.0,0.00015797,2]
[383473732,1756951848752,-184.19889138,0.00015841,2]
[383473733,1756951848762,-587.0,0.00015864,2]
[383473734,1756951848772,-500.0,0.0001589,2]
[383473735,1756951848782,-198.89319161,0.0001589,2]